fUSD/lending_fUSD_20250212
["ID","MTS","AMOUNT","RATE_DAILY","PERIOD"]
[352873234,1739382743860,-500.0,0.00018493,2]
[352873235,1739382743870,-653.17,0.00018493,2]
[352873236,1739382743880,-1129.37,0.00018493,2]
[352873237,1739382743889,-566.02,0.00018493,2]
[352873238,1739382743899,-675.41,0.00018493,2]
[352873239,1739382743909,-500.0,0.00018493,2]
[352873240,1739382743919,-500.0,0.00018493,2]
[352873241,1739382743930,-500.0,0.00018493,2]
[352873242,1739382743940,-807.47,0.00018493,2]
[352873243,1739382743951,-500.0,0.00018493,2]
[352873244,1739382743961,-501.31,0.00018493,2]
[352873245,1739382743971,-1231.38,0.00018493,2]
[352873246,1739382743980,-524.26795851,0.00018493,2]
[352873247,1739382743991,-1199.85,0.00018493,2]
[352873248,1739382744001,-500.0,0.00018493,2]
[352873249,1739382744011,-178.08117108,0.00018493,2]
[352873250,1739382744020,-500.0,0.00018493,2]
[352873251,1739382744031,-500.0,0.00018493,2]
[352873252,1739382744041,-500.0,0.00018493,2]
[352873253,1739382744050,-500.0,0.00018493,2]
[352873254,1739382744060,-500.0,0.00018493,2]
[352873255,1739382744070,-500.0,0.00018493,2]
[352873256,1739382744080,-500.0,0.00018493,2]
[352873257,1739382744091,-500.0,0.00018493,2]
[352873258,1739382744101,-829.87,0.00018493,2]
[352873259,1739382744111,-1032.55,0.00018493,2]
[352873260,1739382744121,-500.0,0.00018493,2]
[352873261,1739382744131,-813.62,0.00018493,2]
[352873262,1739382744141,-794.25,0.00018493,2]
[352873263,1739382744151,-500.0,0.00018493,2]
[352873264,1739382744161,-500.0,0.00018493,2]
[352873265,1739382744171,-822.32,0.00018493,2]
[352873266,1739382744180,-993.03,0.00018493,2]
[352873267,1739382744190,-548.79,0.00018493,2]
[352873268,1739382744199,-639.8,0.00018493,2]
[352873269,1739382744209,-500.0,0.00018493,2]
[352873270,1739382744219,-500.0,0.00018493,2]
[352873271,1739382744229,-652.3,0.00018493,2]
[352873272,1739382744240,-516.35,0.00018493,2]
[352873273,1739382744254,-541.15,0.00018493,2]
[352873274,1739382744264,-649.38,0.00018493,2]
[352873275,1739382744274,-568.96,0.00018493,2]
[352873276,1739382744284,-557.36,0.00018493,2]
[352873277,1739382744294,-500.0,0.00018493,2]
[352873278,1739382744305,-500.0,0.00018493,2]
[352873279,1739382744315,-614.87,0.00018493,2]
[352873280,1739382744326,-2905.55,0.00018493,2]
[352873281,1739382744338,-520.63,0.00018493,2]
[352873282,1739382744349,-954.62,0.00018493,2]
[352873283,1739382744359,-1239.29,0.00018493,2]
[352873284,1739382744369,-533.5,0.00018493,2]
[352873285,1739382744379,-952.94,0.00018493,2]
[352873286,1739382744389,-1268.94,0.00018493,2]
[352873287,1739382744400,-500.0,0.00018493,2]
[352873288,1739382744410,-216.64531811,0.00018493,2]
[352873289,1739382744420,-581.63,0.00018493,2]
[352873290,1739382744431,-1124.26,0.00018493,2]
[352873291,1739382744441,-716.09,0.00018493,2]
[352873292,1739382744451,-500.0,0.00018493,2]
[352873293,1739382744460,-500.0,0.00018493,2]
[352873294,1739382744470,-177.3348897,0.00018493,2]
[352873295,1739382744481,-924.49,0.00018493,2]
[352873296,1739382744490,-816.17,0.00018493,2]
[352873297,1739382744501,-698.6,0.00018493,2]
[352873298,1739382744511,-500.0,0.00018493,2]
[352873299,1739382744521,-500.0,0.00018493,2]
[352873300,1739382744531,-932.44,0.00018493,2]
[352873301,1739382744540,-375.07565421,0.00018493,2]
[352873302,1739382744550,-967.11,0.00018493,2]
[352873303,1739382744559,-500.0,0.00018493,2]
[352873304,1739382744569,-1385.13,0.00018493,2]
[352873305,1739382744579,-708.67,0.00018493,2]
[352873306,1739382744588,-545.84,0.00018493,2]
[352873307,1739382744600,-753.78,0.00018493,2]
[352873308,1739382744610,-1105.97,0.00018493,2]
[352873309,1739382744620,-1050.74,0.00018493,2]
[352873310,1739382744630,-508.8021106,0.00018493,2]
[352873311,1739382744640,-1743.66,0.00018493,2]
[352873312,1739382744649,-500.0,0.00018493,2]
[352873313,1739382744659,-1570.2,0.00018493,2]
[352873314,1739382744669,-500.0,0.00018493,2]
[352873315,1739382744679,-972.24,0.00018493,2]
[352873316,1739382744689,-517.50445202,0.00018493,2]
[352873317,1739382744698,-791.73,0.00018493,2]
[352873318,1739382744708,-549.38,0.00018493,2]
[352873319,1739382744718,-233.11704242,0.00018493,2]
[352873320,1739382744728,-578.94,0.00018493,2]
[352873321,1739382744738,-544.03,0.00018493,2]
[352873322,1739382744748,-1069.58,0.00018493,2]
[352873323,1739382744757,-500.0,0.00018493,2]
[352873324,1739382744766,-695.43,0.00018493,2]
[352873325,1739382744776,-500.0,0.00018493,2]
[352873326,1739382744785,-500.0,0.00018493,2]
[352873327,1739382744795,-533.36,0.00018493,2]
[352873328,1739382744804,-500.0,0.00018493,2]
[352873329,1739382744815,-1527.94,0.00018493,2]
[352873330,1739382744825,-784.42,0.00018493,2]
[352873331,1739382744835,-162.33500544,0.00018493,2]
[352873332,1739382744847,-592.92,0.00018493,2]
[352873333,1739382744857,-815.04,0.00018493,2]
[352873334,1739382744867,-704.34,0.00018493,2]
[352873335,1739382744878,-639.79,0.00018493,2]
[352873336,1739382744888,-500.0,0.00018493,2]
[352873337,1739382744898,-500.0,0.00018493,2]
[352873338,1739382744908,-500.0,0.00018493,2]
[352873339,1739382744920,-500.0,0.00018493,2]
[352873340,1739382744931,-500.0,0.00018493,2]
[352873341,1739382744945,-941.64,0.00018493,2]
[352873342,1739382744959,-500.0,0.00018493,2]
[352873343,1739382744969,-656.91,0.00018493,2]
[352873344,1739382744979,-761.6,0.00018493,2]
[352873345,1739382744989,-1473.21,0.00018493,2]
[352873346,1739382744999,-2165.26,0.00018493,2]
[352873347,1739382745009,-610.51,0.00018493,2]
[352873348,1739382745018,-500.0,0.00018493,2]
[352873349,1739382745029,-649.02,0.00018493,2]
[352873350,1739382745039,-194.56864723,0.00018498,6]
[352873351,1739382745049,-2147.0,0.00018506,2]
[352873352,1739382745059,-962.74,0.00018507,7]
[352873353,1739382745069,-962.74,0.00018507,7]
[352873354,1739382745079,-1000.0,0.00018511,2]
[352873355,1739382745088,-1000.0,0.00018549,2]
[352873356,1739382745102,-500.0,0.00018592,2]
[352873357,1739382745112,-422.89925846,0.00018593,2]
[352873358,1739382745121,-153.49,0.00018594,2]
[352873359,1739382745131,-3773.08,0.000186,2]
[352873360,1739382745141,-154.55,0.000186,2]
[352873361,1739382745151,-154.55,0.000186,2]
[352873362,1739382745160,-999.0,0.00018628,4]
[352873363,1739382745169,-1877.939814,0.0001863,2]
[352873364,1739382745178,-502.948066,0.0001863,2]
[352873365,1739382745188,-500.0,0.0001863,2]
[352873366,1739382745198,-500.0,0.0001863,2]
[352873367,1739382745208,-500.0,0.0001863,2]
[352873368,1739382745219,-500.0,0.0001863,2]
[352873369,1739382745228,-1287.0,0.0001863,2]
[352873370,1739382745239,-500.0,0.0001863,2]
[352873371,1739382745248,-435.98026527,0.0001863,2]
[352873372,1739382745261,-621.99,0.0001863,2]
[352873373,1739382745270,-500.0,0.0001863,2]
[352873374,1739382745280,-500.0,0.0001863,2]
[352873375,1739382745291,-159.11862275,0.0001863,2]
[352873376,1739382745301,-591.94,0.0001863,2]
[352873377,1739382745311,-735.65,0.0001863,2]
[352873378,1739382745321,-156.69101014,0.0001863,2]
[352873379,1739382745331,-500.0,0.0001863,2]
[352873380,1739382745341,-549.65,0.0001863,2]
[352873381,1739382745353,-206.22701859,0.0001863,2]
[352873382,1739382745363,-500.0,0.0001863,2]
[352873383,1739382745373,-577.9,0.0001863,2]
[352873384,1739382745383,-500.0,0.0001863,2]
[352873385,1739382745392,-500.0,0.0001863,2]
[352873386,1739382745402,-500.0,0.0001863,2]
[352873387,1739382745412,-500.0,0.0001863,2]
[352873388,1739382745422,-2215.96,0.0001863,2]
[352873389,1739382745433,-500.0,0.0001863,2]
[352873390,1739382745442,-758.04,0.0001863,2]
[352873391,1739382745452,-329.65296335,0.0001863,2]
[352873392,1739382745465,-791.51,0.0001863,2]
[352873393,1739382745475,-500.0,0.0001863,2]
[352873394,1739382745485,-570.77,0.0001863,2]
[352873395,1739382745495,-500.0,0.0001863,2]
[352873396,1739382745506,-500.0,0.0001863,2]
[352873397,1739382745515,-155.67423692,0.0001863,2]
[352873398,1739382745525,-691.1,0.0001863,2]
[352873399,1739382745534,-500.41,0.0001863,2]
[352873400,1739382745544,-616.94,0.0001863,2]
[352873401,1739382745554,-576.7,0.0001863,2]
[352873402,1739382745563,-739.81,0.0001863,2]
[352873403,1739382745573,-500.0,0.0001863,2]
[352873404,1739382745583,-500.0,0.0001863,2]
[352873405,1739382745595,-500.0,0.0001863,2]
[352873406,1739382745605,-500.0,0.0001863,2]
[352873407,1739382745615,-500.0,0.0001863,2]
[352873408,1739382745624,-454.13580378,0.0001863,2]
[352873409,1739382745634,-629.75,0.0001863,2]
[352873410,1739382745644,-500.0,0.0001863,2]
[352873411,1739382745654,-500.0,0.0001863,2]
[352873412,1739382745664,-500.0,0.0001863,2]
[352873413,1739382745674,-518.71,0.0001863,2]
[352873414,1739382745684,-502.84088522,0.0001863,2]
[352873415,1739382745694,-500.0,0.0001863,2]
[352873416,1739382745704,-546.94,0.0001863,2]
[352873417,1739382745713,-500.0,0.0001863,2]
[352873418,1739382745724,-613.95,0.0001863,2]
[352873419,1739382745733,-622.68,0.0001863,2]
[352873420,1739382745742,-657.14,0.0001863,2]
[352873421,1739382745752,-500.0,0.0001863,2]
[352873422,1739382745762,-653.17,0.0001863,2]
[352873423,1739382745773,-1129.37,0.0001863,2]
[352873424,1739382745783,-566.02,0.0001863,2]
[352873425,1739382745793,-675.41,0.0001863,2]
[352873426,1739382745803,-500.0,0.0001863,2]
[352873427,1739382745813,-375.22,0.0001863,2]
[352873428,1739382745824,-500.0,0.0001863,2]
[352873429,1739382745833,-807.47,0.0001863,2]
[352873430,1739382745845,-500.0,0.0001863,2]
[352873431,1739382745855,-501.31,0.0001863,2]
[352873432,1739382745864,-1231.38,0.0001863,2]
[352873433,1739382745874,-1199.85,0.0001863,2]
[352873434,1739382745883,-500.0,0.0001863,2]
[352873435,1739382745894,-500.0,0.0001863,2]
[352873436,1739382745904,-500.0,0.0001863,2]
[352873437,1739382745913,-500.0,0.0001863,2]
[352873438,1739382745923,-500.0,0.0001863,2]
[352873439,1739382745934,-500.0,0.0001863,2]
[352873440,1739382745943,-500.0,0.0001863,2]
[352873441,1739382745953,-580.91845024,0.0001863,2]
[352873442,1739382745963,-500.0,0.0001863,2]
[352873443,1739382745972,-829.87,0.0001863,2]
[352873444,1739382745982,-1032.55,0.0001863,2]
[352873445,1739382745992,-500.0,0.0001863,2]
[352873446,1739382746002,-813.62,0.0001863,2]
[352873447,1739382746012,-794.25,0.0001863,2]
[352873448,1739382746021,-500.0,0.0001863,2]
[352873449,1739382746032,-500.0,0.0001863,2]
[352873450,1739382746041,-822.32,0.0001863,2]
[352873451,1739382746051,-993.03,0.0001863,2]
[352873452,1739382746060,-548.79,0.0001863,2]
[352873453,1739382746069,-639.8,0.0001863,2]
[352873454,1739382746079,-500.0,0.0001863,2]
[352873455,1739382746089,-473.54584358,0.0001863,2]
[352873456,1739382746101,-652.3,0.0001863,2]
[352873457,1739382746111,-516.35,0.0001863,2]
[352873458,1739382746121,-541.15,0.0001863,2]
[352873459,1739382746130,-649.38,0.0001863,2]
[352873460,1739382746139,-568.96,0.0001863,2]
[352873461,1739382746148,-557.36,0.0001863,2]
[352873462,1739382746157,-500.0,0.0001863,2]
[352873463,1739382746167,-500.0,0.0001863,2]
[352873464,1739382746176,-614.87,0.0001863,2]
[352873465,1739382746188,-2905.55,0.0001863,2]
[352873466,1739382746198,-520.63,0.0001863,2]
[352873467,1739382746207,-954.62,0.0001863,2]
[352873468,1739382746217,-1239.29,0.0001863,2]
[352873469,1739382746227,-533.5,0.0001863,2]
[352873470,1739382746236,-952.94,0.0001863,2]
[352873471,1739382746246,-1268.94,0.0001863,2]
[352873472,1739382746260,-500.0,0.0001863,2]
[352873473,1739382746269,-581.63,0.0001863,2]
[352873474,1739382746278,-1124.26,0.0001863,2]
[352873475,1739382746290,-716.09,0.0001863,2]
[352873476,1739382746300,-500.0,0.0001863,2]
[352873477,1739382746309,-500.0,0.0001863,2]
[352873478,1739382746319,-924.49,0.0001863,2]
[352873479,1739382746329,-816.17,0.0001863,2]
[352873480,1739382746339,-698.6,0.0001863,2]
[352873481,1739382746351,-500.0,0.0001863,2]
[352873482,1739382746360,-500.0,0.0001863,2]
[352873483,1739382746370,-932.44,0.0001863,2]
[352873484,1739382746379,-967.11,0.0001863,2]
[352873485,1739382746389,-168.1,0.0001863,2]
[352873486,1739382746399,-1385.13,0.0001863,2]
[352873487,1739382746408,-708.67,0.0001863,2]
[352873488,1739382746418,-545.84,0.0001863,2]
[352873489,1739382746428,-753.78,0.0001863,2]
[352873490,1739382746438,-1105.97,0.0001863,2]
[352873491,1739382746448,-1050.74,0.0001863,2]
[352873492,1739382746457,-1743.66,0.0001863,2]
[352873493,1739382746467,-500.0,0.0001863,2]
[352873494,1739382746477,-1570.2,0.0001863,2]
[352873495,1739382746486,-587.27753557,0.0001863,2]
[352873496,1739382746495,-972.24,0.0001863,2]
[352873497,1739382746505,-791.73,0.0001863,2]
[352873498,1739382746515,-549.38,0.0001863,2]
[352873499,1739382746524,-578.94,0.0001863,2]
[352873500,1739382746534,-544.03,0.0001863,2]
[352873501,1739382746544,-1069.58,0.0001863,2]
[352873502,1739382746554,-500.0,0.0001863,2]
[352873503,1739382746563,-695.43,0.0001863,2]
[352873504,1739382746572,-500.0,0.0001863,2]
[352873505,1739382746581,-437.43527903,0.0001863,2]
[352873506,1739382746591,-533.36,0.0001863,2]
[352873507,1739382746601,-500.0,0.0001863,2]
[352873508,1739382746611,-1527.94,0.0001863,2]
[352873509,1739382746621,-784.42,0.0001863,2]
[352873510,1739382746631,-592.92,0.0001863,2]
[352873511,1739382746640,-815.04,0.0001863,2]
[352873512,1739382746650,-704.34,0.0001863,2]
[352873513,1739382746660,-639.79,0.0001863,2]
[352873514,1739382746670,-500.0,0.0001863,2]
[352873515,1739382746680,-500.0,0.0001863,2]
[352873516,1739382746690,-500.0,0.0001863,2]
[352873517,1739382746699,-630.03604647,0.0001863,2]
[352873518,1739382746709,-941.64,0.0001863,2]
[352873519,1739382746907,-500.0,0.0001863,2]
[352873520,1739382746918,-656.91,0.0001863,2]
[352873521,1739382746928,-761.6,0.0001863,2]
[352873522,1739382746938,-1473.21,0.0001863,2]
[352873523,1739382746948,-2165.26,0.0001863,2]
[352873524,1739382746957,-610.51,0.0001863,2]
[352873525,1739382746967,-500.0,0.0001863,2]
[352873526,1739382746978,-649.02,0.0001863,2]
[352873527,1739382746989,-8715.79,0.00018683,4]
[352873528,1739382746998,-650.91,0.00018683,4]
[352873529,1739382747009,-1250.04,0.00018683,4]
[352873530,1739382747019,-27232.28,0.00018683,4]
[352873531,1739382747028,-260.67262,0.00018688,7]
[352873532,1739382747038,-500.0,0.00018692,2]
[352873533,1739382747048,-2147.0,0.00018696,2]
[352873534,1739382747057,-194.56864723,0.000187,6]
[352873535,1739382747068,-97691.03,0.000187,7]
[352873536,1739382747077,-150.0,0.00018739,2]
[352873537,1739382747087,-2000.0,0.00018751,2]
[352873538,1739382747101,-156.236594,0.00018767,2]
[352873539,1739382747110,-1877.939814,0.00018767,2]
[352873540,1739382747120,-502.948066,0.00018767,2]
[352873541,1739382747130,-158.222268,0.00018767,2]
[352873542,1739382747140,-500.0,0.00018767,2]
[352873543,1739382747151,-500.0,0.00018767,2]
[352873544,1739382747162,-525.24259231,0.00018767,2]
[352873545,1739382747172,-500.0,0.00018767,2]
[352873546,1739382747183,-1287.0,0.00018767,2]
[352873547,1739382747193,-500.0,0.00018767,2]
[352873548,1739382747204,-621.99,0.00018767,2]
[352873549,1739382747214,-513.79262347,0.00018767,2]
[352873550,1739382747225,-500.0,0.00018767,2]
[352873551,1739382747235,-591.94,0.00018767,2]
[352873552,1739382747249,-735.65,0.00018767,2]
[352873553,1739382747259,-184.13,0.00018767,2]
[352873554,1739382747269,-549.65,0.00018767,2]
[352873555,1739382747279,-500.0,0.00018767,2]
[352873556,1739382747290,-225.8179703,0.00018767,2]
[352873557,1739382747300,-500.0,0.00018767,2]
[352873558,1739382747310,-500.0,0.00018767,2]
[352873559,1739382747320,-500.0,0.00018767,2]
[352873560,1739382747330,-2215.96,0.00018767,2]
[352873561,1739382747340,-364.22,0.00018767,2]
[352873562,1739382747354,-758.04,0.00018767,2]
[352873563,1739382747364,-791.51,0.00018767,2]
[352873564,1739382747375,-500.0,0.00018767,2]
[352873565,1739382747385,-570.77,0.00018767,2]
[352873566,1739382747395,-500.0,0.00018767,2]
[352873567,1739382747406,-500.0,0.00018767,2]
[352873568,1739382747417,-691.1,0.00018767,2]
[352873569,1739382747427,-500.41,0.00018767,2]
[352873570,1739382747438,-616.94,0.00018767,2]
[352873571,1739382747448,-576.7,0.00018767,2]
[352873572,1739382747457,-739.81,0.00018767,2]
[352873573,1739382747467,-249.63761286,0.00018767,2]
[352873574,1739382747478,-500.0,0.00018767,2]
[352873575,1739382747488,-500.0,0.00018767,2]
[352873576,1739382747498,-500.0,0.00018767,2]
[352873577,1739382747508,-389.03464965,0.00018767,2]
[352873578,1739382747518,-500.0,0.00018767,2]
[352873579,1739382747527,-521.40198722,0.00018767,2]
[352873580,1739382747537,-500.0,0.00018767,2]
[352873581,1739382747547,-518.71,0.00018767,2]
[352873582,1739382747557,-500.0,0.00018767,2]
[352873583,1739382747567,-546.94,0.00018767,2]
[352873584,1739382747578,-273.82407464,0.00018767,2]
[352873585,1739382747587,-613.95,0.00018767,2]
[352873586,1739382747600,-622.68,0.00018767,2]
[352873587,1739382747610,-657.14,0.00018767,2]
[352873588,1739382747620,-653.17,0.00018767,2]
[352873589,1739382747630,-1129.37,0.00018767,2]
[352873590,1739382747640,-566.02,0.00018767,2]
[352873591,1739382747650,-675.41,0.00018767,2]
[352873592,1739382747661,-611.68071849,0.00018767,2]
[352873593,1739382747670,-500.0,0.00018767,2]
[352873594,1739382747680,-807.47,0.00018767,2]
[352873595,1739382747690,-500.0,0.00018767,2]
[352873596,1739382747700,-501.31,0.00018767,2]
[352873597,1739382747709,-1231.38,0.00018767,2]
[352873598,1739382747719,-1199.85,0.00018767,2]
[352873599,1739382747729,-500.0,0.00018767,2]
[352873600,1739382747739,-524.59759264,0.00018767,2]
[352873601,1739382747749,-500.0,0.00018767,2]
[352873602,1739382747759,-500.0,0.00018767,2]
[352873603,1739382747768,-500.0,0.00018767,2]
[352873604,1739382747778,-500.0,0.00018767,2]
[352873605,1739382747788,-500.0,0.00018767,2]
[352873606,1739382747798,-500.0,0.00018767,2]
[352873607,1739382747808,-829.87,0.00018767,2]
[352873608,1739382747817,-1032.55,0.00018767,2]
[352873609,1739382747827,-500.0,0.00018767,2]
[352873610,1739382747836,-813.62,0.00018767,2]
[352873611,1739382747846,-794.25,0.00018767,2]
[352873612,1739382747856,-500.0,0.00018767,2]
[352873613,1739382747866,-500.0,0.00018767,2]
[352873614,1739382747876,-822.32,0.00018767,2]
[352873615,1739382747886,-993.03,0.00018767,2]
[352873616,1739382747896,-548.79,0.00018767,2]
[352873617,1739382747906,-639.8,0.00018767,2]
[352873618,1739382747916,-336.95239725,0.00018767,2]
[352873619,1739382747926,-652.3,0.00018767,2]
[352873620,1739382747941,-516.35,0.00018767,2]
[352873621,1739382747950,-541.15,0.00018767,2]
[352873622,1739382747960,-649.38,0.00018767,2]
[352873623,1739382747970,-568.96,0.00018767,2]
[352873624,1739382747979,-557.36,0.00018767,2]
[352873625,1739382747989,-500.0,0.00018767,2]
[352873626,1739382747999,-500.0,0.00018767,2]
[352873627,1739382748009,-614.87,0.00018767,2]
[352873628,1739382748019,-2905.55,0.00018767,2]
[352873629,1739382748028,-520.63,0.00018767,2]
[352873630,1739382748038,-954.62,0.00018767,2]
[352873631,1739382748047,-1239.29,0.00018767,2]
[352873632,1739382748056,-533.5,0.00018767,2]
[352873633,1739382748066,-1268.94,0.00018767,2]
[352873634,1739382748076,-952.94,0.00018767,2]
[352873635,1739382748085,-500.0,0.00018767,2]
[352873636,1739382748097,-581.63,0.00018767,2]
[352873637,1739382748106,-1124.26,0.00018767,2]
[352873638,1739382748116,-716.09,0.00018767,2]
[352873639,1739382748126,-500.0,0.00018767,2]
[352873640,1739382748135,-500.0,0.00018767,2]
[352873641,1739382748145,-924.49,0.00018767,2]
[352873642,1739382748154,-816.17,0.00018767,2]
[352873643,1739382748164,-698.6,0.00018767,2]
[352873644,1739382748174,-284.77425038,0.00018767,2]
[352873645,1739382748184,-500.0,0.00018767,2]
[352873646,1739382748194,-932.44,0.00018767,2]
[352873647,1739382748204,-967.11,0.00018767,2]
[352873648,1739382748214,-1385.13,0.00018767,2]
[352873649,1739382748224,-708.67,0.00018767,2]
[352873650,1739382748235,-545.84,0.00018767,2]
[352873651,1739382748245,-753.78,0.00018767,2]
[352873652,1739382748256,-1105.97,0.00018767,2]
[352873653,1739382748266,-1050.74,0.00018767,2]
[352873654,1739382748276,-1743.66,0.00018767,2]
[352873655,1739382748286,-500.0,0.00018767,2]
[352873656,1739382748295,-1570.2,0.00018767,2]
[352873657,1739382748305,-972.24,0.00018767,2]
[352873658,1739382748315,-791.73,0.00018767,2]
[352873659,1739382748325,-549.38,0.00018767,2]
[352873660,1739382748337,-578.94,0.00018767,2]
[352873661,1739382748349,-544.03,0.00018767,2]
[352873662,1739382748359,-1069.58,0.00018767,2]
[352873663,1739382748368,-500.0,0.00018767,2]
[352873664,1739382748379,-695.43,0.00018767,2]
[352873665,1739382748389,-500.0,0.00018767,2]
[352873666,1739382748399,-533.36,0.00018767,2]
[352873667,1739382748409,-1527.94,0.00018767,2]
[352873668,1739382748418,-784.42,0.00018767,2]
[352873669,1739382748430,-592.92,0.00018767,2]
[352873670,1739382748440,-815.04,0.00018767,2]
[352873671,1739382748449,-704.34,0.00018767,2]
[352873672,1739382748458,-639.79,0.00018767,2]
[352873673,1739382748469,-500.0,0.00018767,2]
[352873674,1739382748479,-500.0,0.00018767,2]
[352873675,1739382748489,-571.47,0.00018767,2]
[352873676,1739382748500,-941.64,0.00018767,2]
[352873677,1739382748510,-193.32,0.00018767,2]
[352873678,1739382748520,-656.91,0.00018767,2]
[352873679,1739382748530,-761.6,0.00018767,2]
[352873680,1739382748540,-1473.21,0.00018767,2]
[352873681,1739382748550,-2165.26,0.00018767,2]
[352873682,1739382748560,-610.51,0.00018767,2]
[352873683,1739382748569,-500.0,0.00018767,2]
[352873684,1739382748579,-649.02,0.00018767,2]
[352873685,1739382748589,-962.74,0.00018781,7]
[352873686,1739382748601,-962.74,0.00018781,7]
[352873687,1739382748610,-1000.0,0.00018782,2]
[352873688,1739382748620,-500.0,0.00018792,2]
[352873689,1739382748629,-25000.0,0.000188,30]
[352873690,1739382748639,-1395567.67124428,0.000188,2]
[352873691,1739382749113,-703182.63120125,0.000188,2]
[352873692,1739382749126,-69307.03218908,0.000188,2]
[352873693,1739382749149,-305.91068178,0.00016575,2]
[352873694,1739382749161,-112.49192108,0.00016575,2]
[352873695,1739382749171,-500.0,0.00016712,2]
[352873696,1739382749180,-540.82072315,0.000188,2]
[352873697,1739382749193,-1567.46282085,0.000188,2]
[352873698,1739382749204,-596.0138533,0.000188,2]
[352873699,1739382749700,-166.13223529,0.000109,2]
[352873700,1739382749709,-246.77986155,0.00014557,2]
[352873701,1739382749719,-500.0,0.00016438,2]
[352873702,1739382749728,-500.0,0.00016438,2]
[352873703,1739382749934,-500.0,0.00016575,2]
[352873704,1739382749946,-500.0,0.00016575,2]
[352873705,1739382749956,-500.0,0.00016712,2]
[352873706,1739382749968,-444.67757849,0.00016712,2]
[352873707,1739382749990,-500.0,0.00016438,2]
[352873708,1739382750000,-55.32242151,0.00016712,2]
[352873709,1739382750010,-500.0,0.00016712,2]
[352873710,1739382750021,-500.0,0.00016849,2]
[352873711,1739382750030,-302.97943737,0.00016849,2]
[352873712,1739382750067,-197.02056263,0.00016849,2]
[352873713,1739382750078,-100.10802786,0.00016849,2]
[352873714,1739382750091,-399.89197214,0.00016849,2]
[352873715,1739382750102,-500.0,0.00016849,2]
[352873716,1739382750112,-93.1003693,0.00016986,2]
[352873717,1739382750129,-500.0,0.00016575,2]
[352873718,1739382750140,-417.73895973,0.00016986,2]
[352873719,1739382750149,-500.0,0.00016986,2]
[352873720,1739382750159,-500.0,0.00016986,2]
[352873721,1739382750169,-507.76312072,0.00016986,2]
[352873722,1739382750181,-500.0,0.00017123,2]
[352873723,1739382750191,-500.0,0.00017123,2]
[352873724,1739382750201,-500.0,0.0001726,2]
[352873725,1739382750211,-500.0,0.0001726,2]
[352873726,1739382750221,-500.0,0.00017397,2]
[352873727,1739382750231,-500.0,0.00017397,2]
[352873728,1739382750242,-500.0,0.00017534,2]
[352873729,1739382750252,-500.0,0.00017534,2]
[352873730,1739382750265,-500.0,0.00017671,2]
[352873731,1739382750276,-500.0,0.00017808,2]
[352873732,1739382750286,-274.09265743,0.00017945,2]
[352873733,1739382750298,-1522.9115706,0.00018188,2]